[Event "37th ECCC 2022"]
[Site "Mayrhofen"]
[Date "2022.10.06"]
[Round "3.7"]
[White "Harikrishna, Pentala"]
[Black "Rodshtein, Maxim"]
[Result "1/2-1/2"]
[ECO "B12"]
[WhiteElo "2717"]
[BlackElo "2602"]
[Annotator "TA"]
[PlyCount "159"]
[EventDate "2022.10.03"]
[EventType "team-tourn"]
[EventCountry "AUT"]
[SourceTitle "playchess.com"]
[Source "ChessBase"]
[SourceQuality "1"]
[TimeControl "40/5400+30:1800+30"]

{[%evp 10,159,20,1,25,19,17,23,34,12,4,-16,-16,-14,-21,-33,-1,-25,-18,-19,0,0,30,11,24,17,24,-8,21,21,19,24,24,24,17,-53,35,27,28,27,29,12,39,39,41,37,35,20,20,20,6,8,13,10,6,5,43,0,40,32,39,37,39,4,39,0,0,2,35,16,15,17,15,16,44,9,15,16,60,0,45,6,81,12,12,9,9,10,23,0,0,0,0,0,0,0,20,0,0,0,0,0,0,0,0,0,0,0,0,0,0,0,0,0,0,0,22,14,14,14,14,15,18,16,37,0,0,0,0,0,0,0,0,0,0,0,0,0,0,0,0,0,0,0,0,0,0,0,0,0,0,0]} 1. e4 {[%emt 0:00:05]} c6 {[%emt 0:00:18]} 2. d4 {[%emt 0:01:08]} d5 {[%emt 0:00:08]} 3. e5 {[%emt 0:03:55]} Bf5 {[%emt 0:00:13]} 4. Nd2 {[%emt 0:00:39]} e6 {[%emt 0:00:27]} 5. Nb3 {[%emt 0:00:06]} Nd7 {[%emt 0:01:29]} 6. Nf3 {[%emt 0:00:30]} Ne7 {[%emt 0:02:42] B12: Caro-Kann: Advance Variation.} 7. Be2 {[%emt 0:02:57]} h6 {[%emt 0:00:48]} 8. O-O {[%emt 0:01:26]} g5 {[%emt 0:00:43] White has an edge.} 9. Bd2 {[%emt 0:03:17] 9.a4 is a critical line.} Bg7 {[%emt 0:01:58]} 10. Ne1 {[%emt 0:00:56]} c5 {[%emt 0:12:59] [#]} 11. Nxc5 $146 {[%emt 0:14:11]} ({Predecessor:} 11. c3 Nc6 12. Nc2 O-O 13. Ne3 Bg6 14. Bh5 cxd4 15. cxd4 Qb6 16. Bc3 a5 17. Bxg6 fxg6 {1-0 (34) Alekseenko,K (2639)-Girshgorn,L (1925) Sochi 2018}) 11... Nxc5 {[%emt 0:00:08]} 12. dxc5 {[%emt 0:00:06]} Qc7 {[%emt 0:07:27]} 13. Nf3 {[%emt 0:05:02]} Qxc5 {[%emt 0:14:06]} 14. Bc3 {[%emt 0:09:45]} a6 {[%emt 0:22:27]} 15. Nd4 {[%emt 0:05:49]} Qc7 {[%emt 0:05:21]} 16. Re1 {[%emt 0:02:04]} Bg6 {[%emt 0:04:23]} 17. Bh5 {[%emt 0:04:57]} O-O {[%emt 0:07:26]} 18. h3 {[%emt 0:09:35]} Rac8 {[%emt 0:02:09]} ({Don't take} 18... Bxe5 {[#]} 19. Nxe6 $1 fxe6 20. Rxe5 $16) 19. Bb4 {[%emt 0:01:37]} Rfe8 {[%emt 0:00:16]} 20. Bxe7 {[%emt 0:01:04]} Rxe7 {[%emt 0:00:37]} 21. Bxg6 {[%emt 0:04:51]} fxg6 {[%emt 0:00:05]} 22. Qg4 {[%emt 0:03:10]} ({White should play} 22. Qe2 $11) 22... Qb6 {[%emt 0:03:06]} (22... Bxe5 $15 23. c3 (23. Nxe6 Qd6 $15) 23... Qd6) 23. Rab1 $14 {[%emt 0:01:04]} Rf8 {[%emt 0:02:53]} 24. c3 {[%emt 0:00:52]} Rf4 {[%emt 0:00:27]} 25. Qg3 {[%emt 0:03:01]} Qc7 {[%emt 0:02:24]} (25... Ref7 $5 {[%cal Rf4f2]}) 26. Qd3 {[%emt 0:01:05]} Kh7 {[%emt 0:00:08]} 27. g3 {[%emt 0:00:39]} Rff7 {[%emt 0:02:19]} 28. Qe2 {[%emt 0:03:41]} Re8 {[%emt 0:00:25]} 29. Rbd1 {[%emt 0:01:23]} Bf8 {[%emt 0:00:52]} 30. Rd3 {[%emt 0:02:12]} Bc5 {[%emt 0:00:16]} 31. Rf3 {[%emt 0:01:18]} Rxf3 {[%emt 0:01:34]} 32. Qxf3 {[%emt 0:00:28]} Re7 {[%emt 0:03:34]} (32... Rf8 $5 {[%cal Rf8f3]} 33. Qe2 Bxd4 34. cxd4 Kg7 $11) 33. Qd3 {[%emt 0:06:18]} Qb6 {[%emt 0:01:08]} (33... Bxd4 $5 34. Qxd4 Rf7 $11) 34. Re2 {[%emt 0:01:14]} Rf7 {[%emt 0:00:23]} 35. Kg2 {[%emt 0:00:56]} Kg7 {[%emt 0:00:15]} 36. a4 {[%emt 0:03:05][%cal Oa4a5] [#] Threatens to win with a5!} a5 {[%emt 0:01:34]} (36... Bxd4 $5 37. cxd4 Qa5 $11) 37. Nf3 {[%emt 0:02:03]} Qb3 {[%emt 0:00:38]} 38. Qc2 {[%emt 0:01:15]} Qc4 {[%emt 0:00:32]} 39. b3 {[%emt 0:01:10]} Qa6 {[%emt 0:00:06]} 40. Nd4 {[%emt 0:00:48]} Qb6 {[%emt 0:00:42]} 41. Qd3 {[%emt 0:30:45]} Rf8 {[%emt 0:04:51]} 42. Re3 {[%emt 0:00:00]} Bxd4 {[%emt 0:19:48]} 43. cxd4 $11 {[%emt 0:00:00][%mdl 4096] Endgame KQR-KQR} Qb4 {[%emt 0:00:27]} 44. Qd1 {[%emt 0:00:00]} ({Better is} 44. Re2 $14) 44... Rf5 {[%emt 0:02:03]} 45. Rd3 {[%emt 0:00:00]} Rf7 {[%emt 0:01:25]} (45... h5 $11) 46. Qc1 {[%emt 0:00:00]} (46. Rf3 $16) 46... b6 {[%emt 0:01:30]} 47. Qc3 {[%emt 0:00:00]} h5 {[%emt 0:01:30]} 48. Qc1 {[%emt 0:00:00]} Rf5 {[%emt 0:00:06]} 49. Qd2 {[%emt 0:00:00]} (49. Qe3 {looks sharper.} b5 50. axb5 Qxb5 51. Rc3) 49... Qxd2 {[%emt 0:02:45]} 50. Rxd2 {[%emt 0:00:00] KR-KR} Rf7 {[%emt 0:00:04]} 51. Rc2 {[%emt 0:00:00] Against Rc7. aiming for Rc6.} Rb7 $1 {[%emt 0:00:04]} 52. Rc6 {[%emt 0:00:20]} Kf7 {[%emt 0:00:07]} 53. Kf3 {[%emt 0:00:44]} b5 {[%emt 0:01:22]} 54. Rc5 {[%emt 0:00:46]} bxa4 {[%emt 0:00:06]} 55. bxa4 {[%emt 0:00:03]} Rb3+ {[%emt 0:00:32]} 56. Ke2 {[%emt 0:00:34]} Rb2+ {[%emt 0:00:05]} 57. Ke3 {[%emt 0:00:32]} Rb3+ {[%emt 0:00:08]} 58. Kd2 {[%emt 0:00:40]} Rb2+ {[%emt 0:00:42]} 59. Ke3 {[%emt 0:01:40]} Rb3+ {[%emt 0:00:08]} 60. Ke2 {[%emt 0:00:06]} Rb2+ {[%emt 0:01:51]} 61. Kf1 {[%emt 0:00:13]} Rb1+ {[%emt 0:00:10]} 62. Kg2 {[%emt 0:00:16]} Rb4 {[%emt 0:00:16]} 63. Rxa5 {[%emt 0:00:04]} Rxd4 {[%emt 0:00:07]} 64. Ra7+ {[%emt 0:00:19]} Kf8 $1 {[%emt 0:00:29]} 65. a5 {[%emt 0:00:12]} g4 {[%emt 0:00:58]} 66. hxg4 {[%emt 0:02:13]} hxg4 {[%emt 0:00:24]} 67. Kf1 {[%emt 0:00:22]} Rd2 $1 {[%emt 0:00:58] The position is equal.} 68. Ra6 {[%emt 0:00:33]} Kf7 {[%emt 0:00:18]} 69. Ra7+ {[%emt 0:01:35]} Kf8 $1 {[%emt 0:00:08]} 70. a6 {[%emt 0:01:03]} Ra2 {[%emt 0:00:05]} 71. Ke1 {[%emt 0:01:03]} d4 {[%emt 0:01:06]} 72. Kd1 {[%emt 0:00:40]} d3 {[%emt 0:00:32]} 73. Kc1 {[%emt 0:00:40]} Rc2+ {[%emt 0:01:34]} 74. Kd1 {[%emt 0:01:23] Threatening mate with Rb7.} Ra2 {[%emt 0:00:06]} 75. Ra8+ {[%emt 0:00:18]} Kg7 {[%emt 0:00:32]} 76. a7 {[%emt 0:00:10]} Kh7 {[%emt 0:01:09]} 77. Re8 {[%emt 0:00:39]} Rxa7 {[%emt 0:00:08]} 78. Rxe6 {[%emt 0:00:06]} Ra2 {[%emt 0:00:25]} 79. Rf6 {[%emt 0:01:18]} Re2 {[%emt 0:00:12]} 80. Rf4 {[%emt 0:00:05] Weighted Error Value: White=0.13 (very precise) /Black=0.14 (very precise)} 1/2-1/2

[Event "37th ECCC 2022"]
[Site "Mayrhofen"]
[Date "2022.10.06"]
[Round "3.8"]
[White "Mikhalevski, Victor"]
[Black "Vidit, Santosh Gujrathi"]
[Result "0-1"]
[ECO "D38"]
[WhiteElo "2523"]
[BlackElo "2710"]
[Annotator "TA"]
[PlyCount "142"]
[EventDate "2022.10.03"]
[EventType "team-tourn"]
[EventCountry "AUT"]
[SourceTitle "playchess.com"]
[Source "ChessBase"]
[SourceQuality "1"]
[TimeControl "40/5400+30:1800+30"]

{[%evp 11,142,5,21,7,21,6,17,13,24,21,21,10,25,15,18,27,19,5,30,18,26,7,8,3,-1,-9,-7,-15,-6,-9,0,3,0,0,0,0,0,0,0,0,18,0,0,0,0,-15,0,0,0,0,0,-21,-29,-21,-17,-55,-35,-35,-35,-22,-14,-15,-7,-9,-8,-70,-72,-70,-51,-78,-124,-134,-13,-13,-10,-136,-72,-165,-168,-148,-168,-142,-165,-137,-79,-79,-79,-79,-49,-43,-18,-22,-8,-22,-8,-8,-8,-8,-8,-8,-8,-8,-8,-29955,-29957,-29959,-29961,-29962,-29963,-29963,-29955,-29964,-29965,-29963,-29966,-29964,-29965,-29966,-29968,-29965,-29968,-29969,-29971,-29972,-29974,-29955,-8482,-29973,-29975,-29987,-29988,-29988,-29989]} 1. d4 {[%emt 0:01:39]} d5 {[%emt 0:01:21]} 2. c4 {[%emt 0:00:09]} e6 {[%emt 0:00:06]} 3. Nf3 {[%emt 0:00:17]} Nf6 {[%emt 0:00:10]} 4. Nc3 {[%emt 0:00:17]} Bb4 {[%emt 0:04:48]} 5. Qa4+ {[%emt 0:00:19]} Nc6 {[%emt 0:00:06][%cal Bb8c6,Bc6b4,Bb4d5,Bd5e7,Be7g6][%mdl 32]} 6. e3 {[%emt 0:00:07]} O-O {[%emt 0:00:10]} 7. Qc2 {[%emt 0:00:12] D38: Queen's Gambit Declined: Ragozin Defence (4 Nf3 Bb4).} Re8 {[%emt 0:03:45]} 8. Bd2 {[%emt 0:00:11]} (8. a3 $5 {[%cal Ra3b4]} Bxc3+ 9. Qxc3 $11) 8... Bf8 {[%emt 0:00:20]} 9. Be2 $1 {[%emt 0:03:47] The position is equal.} Nb4 {[%emt 0:00:34]} 10. Qb1 {[%emt 0:00:22]} dxc4 {[%emt 0:00:26]} 11. Bxc4 {[%emt 0:00:08]} b6 {[%emt 0:00:18]} 12. a3 {[%emt 0:00:23]} Ba6 {[%emt 0:00:28]} 13. Be2 {[%emt 0:00:17]} Bxe2 {[%emt 0:00:17]} 14. Nxe2 {[%emt 0:00:06]} Nbd5 {[%emt 0:01:55]} 15. e4 {[%emt 0:08:16]} Ne7 {[%emt 0:00:21]} 16. e5 {[%emt 0:02:53] [#]} Nd7 $146 {[%emt 0:01:59]} ({Predecessor:} 16... Nfd5 17. Ng5 Ng6 18. h4 Be7 19. Nxh7 Bxh4 20. g3 Kxh7 21. gxh4 Kh8 22. Qe4 f5 {1-0 (42) Giri,A (2764)-Navara,D (2681) chess24.com INT 2022}) 17. Ng5 {[%emt 0:00:35][%csl Gg5][%cal Rb1h7]} Ng6 {[%emt 0:00:12]} 18. h4 {[%emt 0:00:08][%cal Bh2h4,Bh4h5][%mdl 32]} Be7 {[%emt 0:01:46]} 19. Rh3 {[%emt 0:01:55][%cal Og5h7]} c5 {[%emt 0:03:47]} 20. Rg3 $132 {[%emt 0:09:03][%mdl 2048] White is fighting back} cxd4 {[%emt 0:04:52]} 21. h5 {[%emt 0:00:14] Nxf7 is the strong threat.} Ngf8 {[%emt 0:01:15]} 22. Nf3 {[%emt 0:05:22][%cal Bg5f3,Bf3d4,Bd4c6][%mdl 32]} d3 {[%emt 0:07:54]} 23. Bh6 {[%emt 0:20:13]} g6 {[%emt 0:03:32]} 24. Qxd3 {[%emt 0:03:22] aiming for Qe3.} Nc5 {[%emt 0:00:13]} 25. Qe3 {[%emt 0:03:56] And now b4 would win.} Qd3 {[%emt 0:04:46]} 26. Nfd4 {[%emt 0:06:46]} Qxe3 {[%emt 0:02:17] Dancing on a razor blade.} 27. Rxe3 {[%emt 0:00:05]} Rac8 {[%emt 0:04:10] Inhibits Nc6.} 28. Rc1 {[%emt 0:20:39]} gxh5 {[%emt 0:27:12]} 29. b4 {[%emt 0:01:14]} Ncd7 {[%emt 0:00:14]} 30. Nc6 {[%emt 0:00:21]} Ng6 {[%emt 0:00:41][%cal Oc8c6]} 31. f4 {[%emt 0:06:05]} Bf8 {[%emt 0:02:14]} 32. Bxf8 {[%emt 0:00:22]} Kxf8 {[%emt 0:00:26]} 33. Kd2 {[%emt 0:04:46]} Rc7 {[%emt 0:02:07]} 34. Rd3 {[%emt 0:01:22] [#]} Nc5 $1 {[%emt 0:01:56]} 35. Nxa7 {[%emt 0:00:35]} Nxd3 {[%emt 0:07:22]} (35... Rxa7 {looks sharper.} 36. bxc5 bxc5 37. Rxc5 Rb8) 36. Rxc7 {[%emt 0:00:01]} Ndxf4 {[%emt 0:00:09]} 37. Nxf4 {[%emt 0:00:04]} Nxf4 $15 {[%emt 0:00:03][%mdl 4096] Endgame KRN-KRN} 38. Nb5 {[%emt 0:01:16]} (38. Nc8 $1 $11) 38... Nxg2 {[%emt 0:08:20]} 39. Nd6 {[%emt 0:00:11][%csl LRe8,LRf7]} Re7 {[%emt 0:00:05]} 40. Rc8+ {[%emt 0:01:40]} Kg7 {[%emt 0:00:02]} 41. a4 {[%emt 0:12:07]} Nf4 {[%emt 0:11:11]} (41... Rd7 $1 $17 {Threatens to win with ...h4.} 42. b5 Nh4) 42. a5 $11 {[%emt 0:09:06]} bxa5 {[%emt 0:00:14]} 43. bxa5 {[%emt 0:00:06]} (43. b5 $1 $11) 43... h4 {[%emt 0:12:02]} (43... Ng6 $142 44. Rc5 Ra7) 44. Ke3 {[%emt 0:05:21]} (44. a6 $17 h3 45. Nb5) 44... Nd5+ $19 {[%emt 0:02:50]} 45. Kf3 {[%emt 0:00:02]} Ra7 {[%emt 0:00:19]} 46. Rc5 {[%emt 0:00:49]} h5 {[%emt 0:02:19]} 47. Nf5+ {[%emt 0:01:22]} Kg6 {[%emt 0:02:02]} (47... Kh7 $142 {Hoping for ...Rb7.} 48. Nxh4 Rb7) 48. Nxh4+ $17 {[%emt 0:00:01]} Kg5 {[%emt 0:00:10]} 49. Kg3 {[%emt 0:00:02]} Rb7 {[%emt 0:03:21]} 50. Nf3+ {[%emt 0:02:09]} Kf5 {[%emt 0:00:02]} 51. Nd4+ {[%emt 0:01:53]} Kxe5 {[%emt 0:00:40]} 52. a6 {[%emt 0:00:01][%cal Ba5a6,Ba6a7][%mdl 32]} Ra7 {[%emt 0:07:07]} 53. Nc6+ {[%emt 0:01:19]} Kd6 {[%emt 0:00:01]} 54. Nxa7 {[%emt 0:00:10]} Kxc5 $11 {[%emt 0:00:02] KN-KN} 55. Nc8 {[%emt 0:00:28]} f5 {[%emt 0:02:04]} 56. a7 {[%emt 0:02:26]} Nc7 {[%emt 0:00:02]} 57. Kf4 $2 {[%emt 0:00:32][%mdl 8192] This move loses the game for White.} (57. Ne7 $11) 57... h4 {[%emt 0:00:59]} 58. Ne7 {[%emt 0:00:29]} Kb6 {[%emt 0:00:23]} 59. Ng6 {[%emt 0:01:20] [#]} h3 $1 {[%emt 0:00:14]} 60. Kg3 {[%emt 0:00:01]} Kxa7 {[%emt 0:00:05]} 61. Kxh3 {[%emt 0:00:05]} Kb6 {[%emt 0:00:25]} 62. Kg3 {[%emt 0:01:02]} Kc5 {[%emt 0:00:13]} 63. Kf4 {[%emt 0:00:06]} Kd4 {[%emt 0:01:03]} 64. Nf8 {[%emt 0:01:00]} Nd5+ {[%emt 0:00:20]} 65. Kg5 {[%emt 0:00:19]} Ke5 {[%emt 0:00:06]} 66. Nd7+ {[%emt 0:00:41] [#]} Kd6 $1 {[%emt 0:00:11]} 67. Nf8 {[%emt 0:00:49]} f4 {[%emt 0:01:23][%cal Bf5f4,Bf4f3][%mdl 32]} 68. Kg4 {[%emt 0:00:08]} e5 {[%emt 0:00:22]} (68... Ke5 $142 69. Ng6+ Ke4 70. Kh3 Nf6 71. Nh4 Ke3 72. Ng2+ Kf3 73. Ne1+ Ke2 74. Nc2 e5 75. Kh4 f3 76. Kg5 Nd5 77. Kg6 f2 78. Kf5 Ne3+ 79. Kxe5 Nxc2 80. Kf4 f1=Q+ 81. Ke5 Ne3 82. Kd6 Qf6+ 83. Kc7 Qe6 84. Kd8 Kd2 85. Kc7 Nd5+ 86. Kd8 Qe7+ 87. Kc8 Qc7#) 69. Nh7 {[%emt 0:00:25]} e4 {[%emt 0:01:25] Black mates.} 70. Kf5 {[%emt 0:00:28]} f3 {[%emt 0:00:23]} 71. Ng5 {[%emt 0:00:04]} Nc3 {[%emt 0:00:08] Weighted Error Value: White=0.21 (precise) /Black=0.09 (flawless)} 0-1

[Event "37th ECCC 2022"]
[Site "Mayrhofen"]
[Date "2022.10.05"]
[Round "3.9"]
[White "Wojtaszek, Radoslaw"]
[Black "Roiz, Michael"]
[Result "1/2-1/2"]
[ECO "D35"]
[WhiteElo "2693"]
[BlackElo "2579"]
[Annotator "TA"]
[PlyCount "55"]
[EventDate "2022.10.03"]
[EventType "team-tourn"]
[EventCountry "AUT"]
[SourceTitle "playchess.com"]
[Source "ChessBase"]
[SourceQuality "1"]
[TimeControl "40/5400+30:1800+30"]

{[%evp 18,55,25,27,20,20,20,20,20,20,43,43,43,43,43,43,43,43,43,0,50,43,43,43,43,43,43,43,50,43,50,50,50,43,50,0,50,0,50,0]} 1. c4 {[%emt 0:00:03]} e6 {[%emt 0:00:53]} 2. Nc3 {[%emt 0:00:08]} d5 {[%emt 0:00:07]} 3. d4 {[%emt 0:00:08]} Nf6 {[%emt 0:00:06]} 4. cxd5 {[%emt 0:00:12]} exd5 {[%emt 0:00:04]} 5. Bg5 {[%emt 0:00:09]} c6 {[%emt 0:00:04]} 6. e3 {[%emt 0:00:09]} Bf5 {[%emt 0:00:14]} 7. Qf3 {[%emt 0:01:12]} Bg6 {[%emt 0:00:13]} 8. Bxf6 {[%emt 0:00:36]} Qxf6 {[%emt 0:00:05]} 9. Qxf6 {[%emt 0:00:07]} gxf6 {[%emt 0:00:02]} 10. h4 {[%emt 0:07:16]} h5 $1 {[%emt 0:01:25] 10...h5 is better than 10...Nd7. D35: Queen's Gambit Declined: Exchange Variation.} 11. Kd2 {[%emt 0:00:41][%cal Be1d2,Bd2d3,Bd3e2,Be2f3][%mdl 32]} Nd7 {[%emt 0:01:06]} 12. Bd3 {[%emt 0:00:32]} Rg8 {[%emt 0:12:37] [#] The position is equal.} 13. g3 $146 {[%emt 0:04:40]} ({Predecessor:} 13. Nge2 Bxd3 14. Kxd3 Bd6 15. g3 f5 16. Nf4 Nf6 17. Nce2 Kd7 18. Rac1 Rac8 19. Rc2 {1-0 (62) Baron Rodriguez,J (2449)-Labena Bernal,A (2095) Aragon 2012}) 13... Bxd3 {[%emt 0:04:57]} 14. Kxd3 {[%emt 0:00:11]} f5 {[%emt 0:00:03]} 15. Nh3 {[%emt 0:15:07]} a5 {[%emt 0:05:06]} 16. Nf4 {[%emt 0:04:05]} Nf6 {[%emt 0:02:04]} 17. Ke2 {[%emt 0:01:58]} Bd6 {[%emt 0:01:29]} 18. Kf3 {[%emt 0:01:38]} Ke7 {[%emt 0:03:11]} (18... Bxf4 $11 19. Kxf4 Ne4) 19. Rhc1 {[%emt 0:01:18]} Rh8 {[%emt 0:06:15]} 20. Rc2 {[%emt 0:00:39]} Ra7 {[%emt 0:01:05]} 21. Rd1 {[%emt 0:01:34]} Kf8 {[%emt 0:08:38]} 22. Nce2 {[%emt 0:05:42]} Kg7 {[%emt 0:01:56]} 23. Nd3 {[%emt 0:02:52]} Re8 {[%emt 0:01:39]} 24. Nef4 {[%emt 0:00:13]} Kh6 {[%emt 0:00:48]} 25. Nc5 {[%emt 0:00:48]} Ne4 {[%emt 0:04:53]} 26. Ncd3 {[%emt 0:09:16] Pair of Knights!} Nf6 {[%emt 0:01:53]} 27. Nc5 {[%emt 0:07:43]} Ne4 $1 {[%emt 0:00:41]} 28. Ncd3 {[%emt 0:02:08] Weighted Error Value: White=0.11 (very precise) /Black=0.05 (flawless)} ({White should play} 28. Nb3 $14) 1/2-1/2

[Event "37th ECCC 2022"]
[Site "Mayrhofen"]
[Date "2022.10.05"]
[Round "3.10"]
[White "Postny, Evgeny"]
[Black "Navara, David"]
[Result "1/2-1/2"]
[ECO "D11"]
[WhiteElo "2573"]
[BlackElo "2676"]
[Annotator "TA"]
[PlyCount "88"]
[EventDate "2022.10.03"]
[EventType "team-tourn"]
[EventCountry "AUT"]
[SourceTitle "playchess.com"]
[Source "ChessBase"]
[SourceQuality "1"]
[TimeControl "40/5400+30:1800+30"]

{[%evp 13,88,0,0,0,1,1,12,0,17,0,14,0,0,-40,-43,-53,-44,-39,-16,-23,-12,-14,0,0,0,0,0,-30,-25,-16,-13,-13,-8,-10,-10,-6,-5,-2,-6,-11,-7,-7,-5,-56,-56,-63,-23,-17,-19,-33,-18,-34,-10,-32,-3,-12,-10,-10,-7,-25,-20,-25,-15,-16,0,-27,0,-6,0,0,0,0,0,0,0,0,0]} 1. d4 {[%emt 0:00:05]} d5 {[%emt 0:00:04]} 2. c4 {[%emt 0:00:06]} c6 {[%emt 0:00:03]} 3. Nf3 {[%emt 0:00:19]} Nf6 {[%emt 0:00:09]} 4. Qb3 {[%emt 0:00:55]} dxc4 {[%emt 0:00:10]} 5. Qxc4 {[%emt 0:00:06]} Bf5 {[%emt 0:00:05]} 6. g3 {[%emt 0:00:34]} e6 {[%emt 0:00:09]} 7. Bg2 {[%emt 0:00:06]} Be7 {[%emt 0:01:11]} 8. O-O {[%emt 0:00:40] D23: Queen's Gambit Accepted: 3 Nf3 Nf6 sidelines.} O-O {[%emt 0:00:10]} 9. Nbd2 {[%emt 0:02:45]} a5 {[%emt 0:01:50][%cal Ba7a5,Ba5a4][%mdl 32] [#]} 10. Re1 $146 {[%emt 0:05:58]} ({Predecessor:} 10. Qb3 Ra7 11. Nc4 a4 12. Qd1 h6 13. Bf4 Na6 14. Rc1 Nb4 15. a3 Nbd5 16. Be5 {1-0 (39) Mishra,A (2517)-Homa,S (2276) Charlotte 2021}) 10... Ne4 {[%emt 0:25:12]} 11. Qb3 {[%emt 0:07:28]} Ra6 {[%emt 0:08:54]} 12. Nc4 {[%emt 0:08:10]} Nd7 {[%emt 0:15:30][%cal Bb8d7,Bd7b6,Bb6d5][%mdl 32]} 13. Bf4 {[%emt 0:04:41]} Nb6 {[%emt 0:02:28] Hoping for ...a4.} 14. Ne3 {[%emt 0:08:52]} a4 {[%emt 0:00:30]} 15. Qd1 {[%emt 0:00:40]} Nd5 {[%emt 0:05:51]} 16. Nxf5 {[%emt 0:07:21]} exf5 {[%emt 0:00:08]} 17. a3 {[%emt 0:06:46]} c5 {[%emt 0:03:24]} 18. dxc5 {[%emt 0:03:27][%cal Of4d6]} Bxc5 {[%emt 0:01:12]} 19. e3 {[%emt 0:00:21]} Nxf4 {[%emt 0:00:30] Pair of Knights!} 20. Qxd8 {[%emt 0:06:22]} Rxd8 {[%emt 0:00:10]} 21. gxf4 {[%emt 0:00:05]} Rb6 {[%emt 0:04:08]} 22. Re2 {[%emt 0:00:57]} g6 {[%emt 0:06:06]} 23. Rc1 {[%emt 0:02:47]} Be7 {[%emt 0:06:56]} 24. Ne5 {[%emt 0:02:58]} Rbd6 {[%emt 0:05:48]} 25. Bxe4 {[%emt 0:15:53]} Rd1+ {[%emt 0:00:19]} ({Much less strong is} 25... fxe4 26. Rc7 Bf6 27. Rxb7 $14 (27. Nxf7 R6d7 $14)) 26. Rxd1 $1 {[%emt 0:00:06]} Rxd1+ {[%emt 0:00:06]} 27. Kg2 {[%emt 0:00:02]} fxe4 $11 {[%emt 0:00:07][%mdl 4096] Endgame KRB-KRN} 28. f3 {[%emt 0:02:16]} (28. Rc2 $11) 28... f6 $15 {[%emt 0:01:36]} 29. Ng4 {[%emt 0:03:03]} f5 {[%emt 0:04:59]} 30. Nf2 {[%emt 0:00:12]} exf3+ {[%emt 0:00:08]} 31. Kxf3 {[%emt 0:00:03]} Rf1 {[%emt 0:05:33] Threatening ...Bh4.} 32. Kg2 {[%emt 0:04:31]} Rb1 {[%emt 0:00:08]} 33. Rc2 {[%emt 0:02:24]} Kf7 {[%emt 0:02:02]} (33... Bf6 $5 {[%cal Rb1b2]} 34. Nd3 Rd1 $11) 34. e4 {[%emt 0:01:38]} Ke6 {[%emt 0:01:06]} 35. Kf3 {[%emt 0:00:44]} fxe4+ {[%emt 0:00:37]} 36. Nxe4 {[%emt 0:01:15]} Rf1+ {[%emt 0:00:24]} 37. Ke3 {[%emt 0:00:09]} Re1+ {[%emt 0:00:27]} 38. Kf3 $1 {[%emt 0:00:04]} Rf1+ {[%emt 0:00:33]} 39. Ke3 {[%emt 0:00:04]} Re1+ {[%emt 0:00:19]} 40. Kf3 $1 {[%emt 0:00:09] The position is equal.} Kd5 {[%emt 0:00:55]} 41. Rd2+ {[%emt 0:32:07]} Kc6 {[%emt 0:30:31]} 42. Rc2+ {[%emt 0:00:33]} Kd5 {[%emt 0:00:00]} 43. Rd2+ {[%emt 0:00:00]} Kc6 {[%emt 0:00:00]} 44. Rc2+ {[%emt 0:00:00]} Kd5 {[%emt 0:00:00] Weighted Error Value: White=0.07 (flawless) /Black=0.06 (flawless)} 1/2-1/2